fUST/lending_fUST_20250424
["ID","MTS","AMOUNT","RATE_DAILY","PERIOD"]
[358864920,1745494239881,-500.0,0.00019178,2]
[358864921,1745494239891,-500.0,0.00019178,2]
[358864922,1745494239900,-500.0,0.00019178,2]
[358864923,1745494239911,-500.0,0.00019178,2]
[358864924,1745494239922,-635.68,0.00019178,2]
[358864925,1745494239931,-1120.87,0.00019178,2]
[358864926,1745494239940,-754.12,0.00019178,2]
[358864927,1745494239950,-500.0,0.00019178,2]
[358864928,1745494239959,-500.45262469,0.00019178,2]
[358864929,1745494239968,-500.0,0.00019178,2]
[358864930,1745494239977,-1109.1,0.00019178,2]
[358864931,1745494239986,-500.0,0.00019178,2]
[358864932,1745494239995,-863.06,0.00019178,2]
[358864933,1745494240004,-500.0,0.00019178,2]
[358864934,1745494240013,-500.0,0.00019178,2]
[358864935,1745494240023,-607.65,0.00019178,2]
[358864936,1745494240032,-500.0,0.00019178,2]
[358864937,1745494240041,-617.88511885,0.00019178,2]
[358864938,1745494240050,-500.0,0.00019178,2]
[358864939,1745494240061,-742.51,0.00019178,2]
[358864940,1745494240070,-500.0,0.00019178,2]
[358864941,1745494240079,-500.0,0.00019178,2]
[358864942,1745494240088,-500.0,0.00019178,2]
[358864943,1745494240097,-500.0,0.00019178,2]
[358864944,1745494240106,-500.0,0.00019178,2]
[358864946,1745494240115,-1711.98,0.00019178,2]
[358864947,1745494240124,-500.0,0.00019178,2]
[358864948,1745494240134,-500.0,0.00019178,2]
[358864949,1745494240145,-500.0,0.00019178,2]
[358864950,1745494240154,-500.0,0.00019178,2]
[358864951,1745494240164,-503.23625298,0.00019178,2]
[358864952,1745494240173,-500.0,0.00019178,2]
[358864953,1745494240186,-500.0,0.00019178,2]
[358864954,1745494240195,-500.0,0.00019178,2]
[358864955,1745494240204,-500.0,0.00019178,2]
[358864956,1745494240215,-500.0,0.00019178,2]
[358864958,1745494240224,-167.32404216,0.00019178,2]
[358864960,1745494240233,-500.0,0.00019178,2]
[358864962,1745494240242,-500.0,0.00019178,2]
[358864964,1745494240251,-500.0,0.00019178,2]
[358864965,1745494240261,-500.0,0.00019178,2]
[358864966,1745494240271,-610.23,0.00019178,2]
[358864968,1745494240280,-507.00802912,0.00019178,2]
[358864969,1745494240289,-500.0,0.00019178,2]
[358864971,1745494240299,-503.76834141,0.00019178,2]
[358864973,1745494240308,-674.14,0.00019178,2]
[358864974,1745494240318,-946.07,0.00019178,2]
[358864975,1745494240328,-500.0,0.00019178,2]
[358864976,1745494240337,-754.67,0.00019178,2]
[358864977,1745494240347,-500.0,0.00019178,2]
[358864978,1745494240356,-500.0,0.00019178,2]
[358864979,1745494240366,-640.4,0.00019178,2]
[358864980,1745494240376,-1008.29,0.00019178,2]
[358864981,1745494240387,-634.14,0.00019178,2]
[358864982,1745494240402,-500.0,0.00019178,2]
[358864983,1745494240420,-500.0,0.00019178,2]
[358864984,1745494240440,-500.0,0.00019178,2]
[358864985,1745494240451,-500.0,0.00019178,2]
[358864986,1745494240460,-500.0,0.00019178,2]
[358864987,1745494240469,-502.59668745,0.00019178,2]
[358864988,1745494240479,-500.0,0.00019178,2]
[358864989,1745494240489,-773.99,0.00019178,2]
[358864990,1745494240499,-500.0,0.00019178,2]
[358864991,1745494240509,-500.0,0.00019178,2]
[358864992,1745494240518,-500.0,0.00019178,2]
[358864993,1745494240527,-500.0,0.00019178,2]
[358864994,1745494240538,-500.0,0.00019178,2]
[358864995,1745494240547,-500.0,0.00019178,2]
[358864996,1745494240557,-500.0,0.00019178,2]
[358864997,1745494240567,-500.0,0.00019178,2]
[358864998,1745494240576,-500.0,0.00019178,2]
[358864999,1745494240586,-500.0,0.00019178,2]
[358865000,1745494240596,-500.0,0.00019178,2]
[358865001,1745494240606,-500.0,0.00019178,2]
[358865002,1745494240617,-500.0,0.00019178,2]
[358865003,1745494240627,-500.0,0.00019178,2]
[358865004,1745494240637,-500.0,0.00019178,2]
[358865005,1745494240647,-504.30502543,0.00019178,2]
[358865006,1745494240657,-500.0,0.00019178,2]
[358865007,1745494240666,-500.0,0.00019178,2]
[358865008,1745494240676,-500.0,0.00019178,2]
[358865009,1745494240689,-500.0,0.00019178,2]
[358865010,1745494240699,-505.9188295,0.00019178,2]
[358865011,1745494240710,-500.0,0.00019178,2]
[358865012,1745494240719,-687.61,0.00019178,2]
[358865013,1745494240729,-500.0,0.00019178,2]
[358865014,1745494240739,-500.0,0.00019178,2]
[358865015,1745494240749,-500.0,0.00019178,2]
[358865016,1745494240759,-500.0,0.00019178,2]
[358865017,1745494240768,-500.0,0.00019178,2]
[358865018,1745494240778,-500.0,0.00019178,2]
[358865019,1745494240787,-586.81,0.00019178,2]
[358865020,1745494240796,-500.0,0.00019178,2]
[358865021,1745494240806,-502.2314393,0.00019178,2]
[358865022,1745494240815,-500.0,0.00019178,2]
[358865023,1745494240952,-502.88738888,0.00019178,2]
[358865024,1745494240962,-500.0,0.00019178,2]
[358865025,1745494240971,-500.0,0.00019178,2]
[358865026,1745494240981,-245.04110683,0.00019178,2]
[358865027,1745494240990,-500.0,0.00019178,2]
[358865028,1745494240999,-500.0,0.00019178,2]
[358865029,1745494241011,-500.0,0.00019178,2]
[358865030,1745494241020,-500.0,0.00019178,2]
[358865031,1745494241030,-500.0,0.00019178,2]
[358865032,1745494241040,-500.0,0.00019178,2]
[358865033,1745494241049,-500.0,0.00019178,2]
[358865034,1745494241059,-500.0,0.00019178,2]
[358865035,1745494241069,-738.1,0.00019178,2]
[358865036,1745494241078,-500.0,0.00019178,2]
[358865037,1745494241088,-500.0,0.00019178,2]
[358865038,1745494241097,-506.13,0.00019178,2]
[358865039,1745494241106,-951.6,0.00019178,2]
[358865040,1745494241116,-500.0,0.00019178,2]
[358865041,1745494241125,-500.0,0.00019178,2]
[358865042,1745494241135,-482.82358185,0.00019178,2]
[358865043,1745494241148,-509.09578497,0.00019178,2]
[358865044,1745494241158,-770.69,0.00019178,2]
[358865045,1745494241168,-500.0,0.00019178,2]
[358865046,1745494241182,-1660.85,0.00019178,2]
[358865047,1745494241194,-500.0,0.00019178,2]
[358865048,1745494241204,-436.67521683,0.00019178,2]
[358865049,1745494241215,-508.14850248,0.00019178,2]
[358865050,1745494241225,-500.0,0.00019178,2]
[358865051,1745494241235,-883.71,0.00019178,2]
[358865052,1745494241246,-515.64641614,0.00019178,2]
[358865053,1745494241256,-500.0,0.00019178,2]
[358865054,1745494241266,-513.81,0.00019178,2]
[358865055,1745494241276,-500.0,0.00019178,2]
[358865056,1745494241286,-500.0,0.00019178,2]
[358865057,1745494241296,-879.84,0.00019178,2]
[358865058,1745494241306,-786.54,0.00019178,2]
[358865059,1745494241315,-500.0,0.00019178,2]
[358865060,1745494241325,-500.0,0.00019178,2]
[358865061,1745494241334,-502.1,0.00019178,2]
[358865062,1745494241344,-516.36,0.00019178,2]
[358865063,1745494241354,-980.05,0.00019178,2]
[358865064,1745494241363,-500.0,0.00019178,2]
[358865065,1745494241373,-551.7,0.00019178,2]
[358865066,1745494241382,-500.0,0.00019178,2]
[358865067,1745494241391,-501.02104774,0.00019178,2]
[358865068,1745494241402,-500.0,0.00019178,2]
[358865069,1745494241412,-500.0,0.00019178,2]
[358865070,1745494241422,-500.0,0.00019178,2]
[358865071,1745494241435,-5742.29,0.00019178,2]
[358865072,1745494241444,-500.0,0.00019178,2]
[358865073,1745494241453,-803.73,0.00019178,2]
[358865074,1745494241462,-1111.24,0.00019178,2]
[358865075,1745494241471,-3023.75,0.00019178,2]
[358865076,1745494241481,-500.0,0.00019178,2]
[358865077,1745494241490,-500.0,0.00019178,2]
[358865078,1745494241500,-800.84,0.00019178,2]
[358865079,1745494241511,-1333.25,0.00019178,2]
[358865080,1745494241520,-3915.15,0.00019178,2]
[358865081,1745494241529,-500.0,0.00019178,2]
[358865082,1745494241538,-500.0,0.00019178,2]
[358865083,1745494241547,-400.73634668,0.00019178,2]
[358865084,1745494241557,-500.0,0.00019178,2]
[358865085,1745494241567,-500.0,0.00019178,2]
[358865086,1745494241576,-1061.56,0.00019178,2]
[358865087,1745494241585,-500.0,0.00019178,2]
[358865088,1745494241594,-536.87,0.00019178,2]
[358865089,1745494241604,-500.0,0.00019178,2]
[358865090,1745494241614,-1028.16,0.00019178,2]
[358865091,1745494241623,-522.6,0.00019178,2]
[358865092,1745494241632,-748.92,0.00019178,2]
[358865093,1745494241641,-500.0,0.00019178,2]
[358865094,1745494241650,-500.0,0.00019178,2]
[358865095,1745494241659,-3688.22,0.00019178,2]
[358865096,1745494241669,-607.15538036,0.00019178,2]
[358865097,1745494241679,-500.0,0.00019178,2]
[358865098,1745494241688,-280.27331324,0.00019178,2]
[358865099,1745494241697,-508.83018846,0.00019178,2]
[358865100,1745494241707,-500.0,0.00019178,2]
[358865101,1745494241717,-500.0,0.00019178,2]
[358865102,1745494241727,-500.0,0.00019178,2]
[358865103,1745494241737,-500.0,0.00019178,2]
[358865104,1745494241746,-500.0,0.00019178,2]
[358865105,1745494241755,-500.0,0.00019178,2]
[358865106,1745494241764,-500.0,0.00019178,2]
[358865107,1745494241773,-722.19,0.00019178,2]
[358865108,1745494241783,-500.0,0.00019178,2]
[358865109,1745494241792,-1611.32,0.00019178,2]
[358865110,1745494241801,-500.0,0.00019178,2]
[358865111,1745494241810,-1246.72,0.00019178,2]
[358865112,1745494241819,-500.0,0.00019178,2]
[358865113,1745494241829,-500.0,0.00019178,2]
[358865114,1745494241838,-842.53,0.00019178,2]
[358865115,1745494241847,-419.8076554,0.00019178,2]
[358865116,1745494241855,-639.40498532,0.00019178,2]
[358865117,1745494241865,-500.0,0.00019178,2]
[358865118,1745494241874,-580.56,0.00019178,2]
[358865119,1745494241883,-3069.06,0.00019178,2]
[358865120,1745494241892,-500.0,0.00019178,2]
[358865121,1745494241901,-500.0,0.00019178,2]
[358865122,1745494241910,-500.0,0.00019178,2]
[358865123,1745494241919,-500.0,0.00019178,2]
[358865124,1745494241928,-500.0,0.00019178,2]
[358865125,1745494241937,-500.0,0.00019178,2]
[358865126,1745494241947,-1138.82,0.00019178,2]
[358865127,1745494241956,-500.0,0.00019178,2]
[358865128,1745494241966,-275.60695391,0.00019178,2]
[358865129,1745494241975,-1307.38,0.00019178,2]
[358865130,1745494241984,-921.72,0.00019178,2]
[358865131,1745494241993,-1055.65,0.00019178,2]
[358865132,1745494242002,-500.0,0.00019178,2]
[358865133,1745494242011,-500.0,0.00019178,2]
[358865134,1745494242020,-500.0,0.00019178,2]
[358865135,1745494242029,-823.98,0.00019178,2]
[358865136,1745494242038,-519.66,0.00019178,2]
[358865137,1745494242047,-4237.38,0.00019178,2]
[358865138,1745494242056,-3949.63,0.00019178,2]
[358865139,1745494242064,-500.0,0.00019178,2]
[358865140,1745494242074,-500.0,0.00019178,2]
[358865141,1745494242084,-5032.76,0.00019178,2]
[358865142,1745494242093,-500.0,0.00019178,2]
[358865143,1745494242102,-501.08,0.00019178,2]
[358865144,1745494242111,-1005.37,0.00019178,2]
[358865145,1745494242120,-500.0,0.00019178,2]
[358865146,1745494242129,-1405.9,0.00019178,2]
[358865147,1745494242141,-500.0,0.00019178,2]
[358865148,1745494242150,-505.60450518,0.00019178,2]
[358865149,1745494242159,-588.54915074,0.00019178,2]
[358865150,1745494242168,-792.25,0.00019178,2]
[358865151,1745494242179,-932.78,0.00019178,2]
[358865152,1745494242188,-500.0,0.00019178,2]
[358865153,1745494242197,-500.0,0.00019178,2]
[358865154,1745494242206,-868.16,0.00019178,2]
[358865155,1745494242216,-500.0,0.00019178,2]
[358865156,1745494242226,-521.33,0.00019178,2]
[358865157,1745494242235,-500.0,0.00019178,2]
[358865158,1745494242246,-1338.62,0.00019178,2]
[358865159,1745494242255,-1067.91,0.00019178,2]
[358865160,1745494242264,-500.0,0.00019178,2]
[358865161,1745494242274,-2444.15,0.00019178,2]
[358865162,1745494242283,-500.0,0.00019178,2]
[358865163,1745494242292,-500.0,0.00019178,2]
[358865164,1745494242301,-500.0,0.00019178,2]
[358865165,1745494242311,-11905.52,0.00019178,2]
[358865166,1745494242320,-618.37,0.00019178,2]
[358865167,1745494242329,-570.47,0.00019178,2]
[358865168,1745494242338,-500.0,0.00019178,2]
[358865169,1745494242347,-500.0,0.00019178,2]
[358865170,1745494242357,-500.0,0.00019178,2]
[358865171,1745494242366,-2772.06,0.00019178,2]
[358865172,1745494242376,-500.0,0.00019178,2]
[358865173,1745494242387,-500.0,0.00019178,2]
[358865174,1745494242397,-776.09,0.00019178,2]
[358865175,1745494242407,-1483.9,0.00019178,2]
[358865176,1745494242418,-504.87985386,0.00019178,2]
[358865177,1745494242428,-3051.02,0.00019178,2]
[358865178,1745494242437,-504.93828522,0.00019178,2]
[358865179,1745494242446,-500.0,0.00019178,2]
[358865180,1745494242456,-500.0,0.00019178,2]
[358865181,1745494242465,-500.0,0.00019178,2]
[358865182,1745494242474,-500.0,0.00019178,2]
[358865183,1745494242483,-730.77,0.00019178,2]
[358865184,1745494242493,-511.31,0.00019178,2]
[358865185,1745494242502,-500.0,0.00019178,2]
[358865186,1745494242512,-4239.52,0.00019178,2]
[358865187,1745494242521,-500.0,0.00019178,2]
[358865188,1745494242531,-500.0,0.00019178,2]
[358865189,1745494242540,-931.38,0.00019178,2]
[358865190,1745494242550,-510.60520705,0.00019178,2]
[358865191,1745494242562,-500.0,0.00019178,2]
[358865192,1745494242572,-500.0,0.00019178,2]
[358865193,1745494242582,-500.0,0.00019178,2]
[358865194,1745494242592,-3969.07,0.00019178,2]
[358865195,1745494242601,-528.05,0.00019178,2]
[358865196,1745494242611,-725.5,0.00019178,2]
[358865197,1745494242620,-923.99,0.00019178,2]
[358865198,1745494242630,-500.0,0.00019178,2]
[358865199,1745494242640,-500.0,0.00019178,2]
[358865200,1745494242650,-500.0,0.00019178,2]
[358865201,1745494242659,-500.0,0.00019178,2]
[358865202,1745494242669,-363.02685896,0.00019178,2]
[358865203,1745494242680,-500.0,0.00019178,2]
[358865204,1745494242690,-500.0,0.00019178,2]
[358865205,1745494242699,-500.0,0.00019178,2]
[358865206,1745494242708,-500.0,0.00019178,2]
[358865207,1745494242718,-500.0,0.00019178,2]
[358865208,1745494242728,-500.0,0.00019178,2]
[358865209,1745494242737,-500.0,0.00019178,2]
[358865210,1745494242746,-500.0,0.00019178,2]
[358865211,1745494242755,-500.0,0.00019178,2]
[358865212,1745494242765,-500.0,0.00019178,2]
[358865213,1745494242774,-500.0,0.00019178,2]
[358865214,1745494242784,-300.0,0.00019178,2]
[358865215,1745494242793,-184.76941852,0.00019259,2]
[358865216,1745494242802,-509.44,0.000193,3]
[358865217,1745494242812,-222.7476,0.00019325,2]
[358865219,1745494242822,-160.0,0.00019345,2]
[358865222,1745494242831,-160.0,0.00019345,2]
[358865225,1745494242840,-840.0731918,0.00019345,2]
[358865227,1745494242849,-160.0,0.00019345,2]
[358865228,1745494242860,-12576.49486522,0.00019345,2]
[358865229,1745494242871,-160.0,0.00019345,2]
[358865230,1745494242880,-420.89490186,0.00019345,2]
[358865231,1745494242890,-160.0,0.00019345,2]
[358865232,1745494242899,-160.0,0.00019345,2]
[358865233,1745494242908,-184.76941852,0.00019352,2]
[358865234,1745494242917,-170.584,0.00019397,2]
[358865235,1745494242926,-500.0,0.00019452,2]
[358865236,1745494242937,-500.0,0.00019452,2]
[358865237,1745494242947,-500.0,0.00019452,2]
[358865238,1745494242956,-7443.019634,0.00019452,2]
[358865239,1745494242965,-1115.16,0.00019452,2]
[358865241,1745494242974,-947.01,0.00019452,2]
[358865243,1745494242985,-500.0,0.00019452,2]
[358865244,1745494242995,-596.91,0.00019452,2]
[358865245,1745494243006,-500.0,0.00019452,2]
[358865246,1745494243015,-500.0,0.00019452,2]
[358865247,1745494243024,-581.67,0.00019452,2]
[358865248,1745494243034,-500.0,0.00019452,2]
[358865249,1745494243043,-500.0,0.00019452,2]
[358865250,1745494243052,-1108.63,0.00019452,2]
[358865251,1745494243061,-500.0,0.00019452,2]
[358865252,1745494243071,-500.0,0.00019452,2]
[358865254,1745494243080,-500.0,0.00019452,2]
[358865255,1745494243090,-500.0,0.00019452,2]
[358865256,1745494243101,-500.0,0.00019452,2]
[358865257,1745494243110,-607.75,0.00019452,2]
[358865258,1745494243119,-500.0,0.00019452,2]
[358865259,1745494243128,-500.0,0.00019452,2]
[358865260,1745494243142,-500.0,0.00019452,2]
[358865261,1745494243153,-500.0,0.00019452,2]
[358865262,1745494243162,-655.56,0.00019452,2]
[358865263,1745494243172,-500.0,0.00019452,2]
[358865264,1745494243184,-577.98,0.00019452,2]
[358865265,1745494243194,-500.0,0.00019452,2]
[358865266,1745494243203,-500.0,0.00019452,2]
[358865267,1745494243214,-2216.45,0.00019452,2]
[358865268,1745494243225,-500.0,0.00019452,2]
[358865269,1745494243234,-788.59,0.00019452,2]
[358865270,1745494243244,-500.0,0.00019452,2]
[358865271,1745494243256,-618.33,0.00019452,2]
[358865272,1745494243266,-500.0,0.00019452,2]
[358865273,1745494243276,-1135.52,0.00019452,2]
[358865274,1745494243287,-500.0,0.00019452,2]
[358865275,1745494243297,-500.0,0.00019452,2]
[358865276,1745494243307,-500.0,0.00019452,2]
[358865277,1745494243317,-191.77239508,0.00019452,2]
[358865279,1745494243328,-500.0,0.00019452,2]
[358865280,1745494243337,-632.32,0.00019452,2]
[358865282,1745494243466,-1418.57,0.00019452,2]
[358865284,1745494243476,-514.13,0.00019452,2]
[358865285,1745494243485,-500.0,0.00019452,2]
[358865287,1745494243495,-1021.87,0.00019452,2]
[358865288,1745494243504,-500.0,0.00019452,2]
[358865290,1745494243513,-500.0,0.00019452,2]
[358865292,1745494243522,-500.0,0.00019452,2]
[358865294,1745494243531,-500.0,0.00019452,2]
[358865295,1745494243541,-500.0,0.00019452,2]
[358865296,1745494243550,-2720.23,0.00019452,2]
[358865297,1745494243559,-500.0,0.00019452,2]
[358865298,1745494243569,-500.0,0.00019452,2]
[358865299,1745494243578,-955.9,0.00019452,2]
[358865300,1745494243587,-500.0,0.00019452,2]
[358865301,1745494243597,-500.0,0.00019452,2]
[358865302,1745494243606,-635.68,0.00019452,2]
[358865303,1745494243616,-1120.87,0.00019452,2]
[358865304,1745494243626,-754.12,0.00019452,2]
[358865305,1745494243636,-500.0,0.00019452,2]
[358865306,1745494243645,-1109.1,0.00019452,2]
[358865307,1745494243654,-863.06,0.00019452,2]
[358865308,1745494243663,-500.0,0.00019452,2]
[358865309,1745494243672,-607.65,0.00019452,2]
[358865310,1745494243683,-500.0,0.00019452,2]
[358865311,1745494243692,-742.51,0.00019452,2]
[358865312,1745494243702,-500.0,0.00019452,2]
[358865313,1745494243710,-164.16792648,0.00019452,2]
[358865314,1745494243720,-500.0,0.00019452,2]
[358865315,1745494243730,-1711.98,0.00019452,2]
[358865316,1745494243739,-192.550759,0.00019452,2]
[358865317,1745494243750,-500.0,0.00019452,2]
[358865318,1745494243759,-500.0,0.00019452,2]
[358865319,1745494243768,-610.23,0.00019452,2]
[358865320,1745494243778,-674.14,0.00019452,2]
[358865321,1745494243787,-946.07,0.00019452,2]
[358865322,1745494243797,-754.67,0.00019452,2]
[358865323,1745494243806,-500.0,0.00019452,2]
[358865324,1745494243815,-640.4,0.00019452,2]
[358865325,1745494243825,-1008.29,0.00019452,2]
[358865326,1745494243835,-634.14,0.00019452,2]
[358865327,1745494243844,-500.0,0.00019452,2]
[358865328,1745494243854,-377.59875643,0.00019452,2]
[358865329,1745494243864,-500.0,0.00019452,2]
[358865330,1745494243873,-500.0,0.00019452,2]
[358865331,1745494243883,-500.0,0.00019452,2]
[358865332,1745494243892,-773.99,0.00019452,2]
[358865333,1745494243901,-500.0,0.00019452,2]
[358865334,1745494243910,-500.0,0.00019452,2]
[358865335,1745494243919,-500.0,0.00019452,2]
[358865336,1745494243929,-500.0,0.00019452,2]
[358865337,1745494243938,-500.0,0.00019452,2]
[358865338,1745494243948,-500.0,0.00019452,2]
[358865339,1745494243957,-687.61,0.00019452,2]
[358865340,1745494243966,-500.0,0.00019452,2]
[358865341,1745494243975,-500.0,0.00019452,2]
[358865342,1745494243984,-586.81,0.00019452,2]
[358865343,1745494243994,-500.0,0.00019452,2]
[358865344,1745494244005,-500.0,0.00019452,2]
[358865345,1745494244014,-424.80290577,0.00019452,2]
[358865346,1745494244024,-22.60114688,0.00019452,2]
[358865351,1745494246378,-500.0,0.00019178,2]
[358865352,1745494246390,-2031.0,0.00019178,2]
[358865364,1745494580303,3999.99,0.00015,2]
[358865365,1745494717971,200.0,0.00016,120]
[358865370,1745495232123,-251.425028,0.0001754,2]
[358865371,1745495232147,-300.0,0.00017858,2]
[358865372,1745495232176,-143.72696289,0.00017859,2]
[358865374,1745495264846,-431.09346295,0.000165,2]
[358865375,1745495276082,-160.0,0.000165,2]
[358865376,1745495282316,-184.25520374,0.000165,2]
[358865377,1745495286884,-152.0,0.00016499,2]
[358865378,1745495289959,-148.0,0.00016499,2]
[358865379,1745495289985,-510.97273017,0.000165,2]
[358865380,1745495304069,-297.56704017,0.000165,2]
[358865381,1745495314731,-199.85789916,0.00016499,2]
[358865382,1745495314753,-100.14210084,0.00016499,2]
[358865383,1745495317975,-152.0,0.00016499,2]
[358865384,1745495322590,-329.50187732,0.00016499,2]
[358865385,1745495322614,-68.18749377,0.00016499,2]
[358865386,1745495328381,-390.57783902,0.00016499,2]
[358865387,1745495331806,-41.23466721,0.00016499,2]
[358865388,1745495331829,-208.64153639,0.00016499,2]
[358865396,1745495337408,-63.35846361,0.00016499,2]
[358865397,1745495337438,-107.73585274,0.00016499,2]
[358865398,1745495341320,-173.84530337,0.00016499,2]
[358865399,1745495345236,-193.29626298,0.00016498,2]
[358865400,1745495350963,-106.70373702,0.00016498,2]
[358865401,1745495350990,-150.5833299,0.00016499,2]
[358865402,1745495355905,-67.83551399,0.00016499,2]
[358865403,1745495355944,-92.46514182,0.00016499,2]
[358865404,1745495360403,-152.68707532,0.00016499,2]
[358865405,1745495364723,-193.29626298,0.00016334,2]
[358865406,1745495364748,-6.63592602,0.00016499,2]
[358865407,1745495366095,-343.67120179,0.00016499,2]
[358865408,1745495366124,-95.36131775,0.00016499,2]
[358865409,1745495369705,-214.4010444,0.00016499,2]
[358865410,1745495373092,-190.23763785,0.00016499,2]
[358865411,1745495373118,-500.0,0.00016499,2]
[358865412,1745495373142,-500.0,0.00016499,2]
[358865413,1745495373168,-481.5116624,0.00016499,2]
[358865437,1745495432525,-155.83212879,0.00016399,2]
[358865438,1745495432535,-155.83212879,0.00016496,2]
[358865439,1745495432544,-1200.0,0.00016498,2]
[358865440,1745495432553,-300.0,0.00016499,2]
[358865442,1745495432563,-11905.46781337,0.000165,2]
[358865502,1745495438421,-500.0,0.00016497,2]
[358865504,1745495438430,-500.0,0.00016497,2]
[358865506,1745495438440,-500.0,0.00016497,2]
[358865508,1745495438449,-351.24578584,0.00016497,2]
[358865510,1745495438460,-5183.4331664,0.000165,2]
[358865512,1745495438472,-4339.73983249,0.000165,2]
[358865514,1745495438481,-155.83212879,0.00016594,2]
[358865516,1745495438490,-155.83212879,0.00016691,2]
[358865518,1745495438500,-155.83212879,0.00016788,2]
[358865520,1745495438509,-1157.1864552,0.00016889,2]
[358865522,1745495438519,-1757.46917024,0.0001793,2]
[358865524,1745495438531,-906.931388,0.00017949,2]
[358865526,1745495438542,-160.0,0.00018,3]
[358865528,1745495438552,-12576.49486522,0.00018,3]
[358865530,1745495438561,-840.0731918,0.00018,3]
[358865532,1745495438572,-420.0,0.0001803,2]
[358865534,1745495438581,-1023.0,0.00018119,2]
[358865536,1745495438590,-11491.34393306,0.000187,2]
[358865538,1745495438601,-500.0,0.00018773,2]
[358865540,1745495438611,-588.61533858,0.00018773,2]
[358865542,1745495438621,-500.0,0.00018773,2]
[358865544,1745495438630,-500.0,0.00018773,2]
[358865546,1745495438639,-500.0,0.00018773,2]
[358865548,1745495438649,-500.0,0.00018773,2]
[358865550,1745495438658,-500.0,0.00018773,2]
[358865552,1745495438667,-483.92450354,0.00018773,2]
[358865555,1745495438676,-370000.0,0.00018778,2]
[358865558,1745495438685,-180.10105329,0.00019073,2]
[358865561,1745495438694,-180.10105328,0.00019143,2]
[358865563,1745495438703,-500.0,0.00019173,2]
[358865565,1745495438713,-500.0,0.00019173,2]
[358865567,1745495438722,-500.0,0.00019173,2]
[358865569,1745495438731,-500.0,0.00019173,2]
[358865570,1745495438740,-500.0,0.00019173,2]
[358865572,1745495438750,-500.0,0.00019173,2]
[358865573,1745495438759,-500.0,0.00019173,2]
[358865574,1745495438768,-500.0,0.00019173,2]
[358865575,1745495438777,-500.0,0.00019173,2]
[358865576,1745495438786,-500.0,0.00019173,2]
[358865577,1745495438796,-500.0,0.00019173,2]
[358865578,1745495438806,-500.0,0.00019173,2]
[358865580,1745495438816,-500.0,0.00019173,2]
[358865581,1745495438825,-500.0,0.00019173,2]
[358865582,1745495438835,-500.0,0.00019173,2]
[358865583,1745495438844,-500.0,0.00019173,2]
[358865584,1745495438853,-500.0,0.00019178,2]
[358865585,1745495438862,-500.0,0.00019178,2]
[358865586,1745495438871,-500.0,0.00019178,2]
[358865587,1745495438881,-500.0,0.00019178,2]
[358865588,1745495438890,-500.0,0.00019178,2]
[358865589,1745495438900,-500.0,0.00019178,2]
[358865590,1745495438910,-500.0,0.00019178,2]